[Event "Titled Tuesday Blitz August 15 Late 2023"]
[White "Hirneise, Jens"]
[Black "Nakamura, Hikaru"]
[WhiteFideId "24614734"]
[BlackFideId "2016192"]
[WhiteElo "2504"]
[BlackElo "3231"]
[Result "0-1"]
[Round "1"]
[TimeControl "180+1"]
[Date "2023.08.15"]
[WhiteClock "0:00:00"]
[BlackClock "0:01:37"]
[Board "1"]

1. Nf3 {[%clk 0:02:59]}  g6 {[%clk 0:02:57]} 2. e4 {[%clk 0:02:57]}  c6 {[%clk 0:02:56]} 3. d4 {[%clk 0:02:53]}  d5 {[%clk 0:02:56]} 4. e5 {[%clk 0:02:51]}  Bg4 {[%clk 0:02:56]} 5. Be2 {[%clk 0:02:52]}  Bh6 {[%clk 0:02:53]} 6. Nbd2 {[%clk 0:02:47]}  e6 {[%clk 0:02:50]} 7. O-O {[%clk 0:02:47]}  Nd7 {[%clk 0:02:50]} 8. Nb3 {[%clk 0:02:46]}  Bxc1 {[%clk 0:02:49]} 9. Rxc1 {[%clk 0:02:47]}  Bxf3 {[%clk 0:02:49]} 10. Bxf3 {[%clk 0:02:46]}  Ne7 {[%clk 0:02:50]} 11. Qd2 {[%clk 0:02:42]}  a5 {[%clk 0:02:49]} 12. Rce1 {[%clk 0:02:30]}  a4 {[%clk 0:02:47]} 13. Nc1 {[%clk 0:02:30]}  c5 {[%clk 0:02:47]} 14. dxc5 {[%clk 0:02:25]}  Qa5 {[%clk 0:02:44]} 15. c3 {[%clk 0:02:21]}  Nxc5 {[%clk 0:02:40]} 16. a3 {[%clk 0:02:18]}  Qb6 {[%clk 0:02:36]} 17. Ne2 {[%clk 0:02:13]}  Nb3 {[%clk 0:02:35]} 18. Qf4 {[%clk 0:02:11]}  O-O {[%clk 0:02:31]} 19. Rd1 {[%clk 0:02:05]}  Rac8 {[%clk 0:02:23]} 20. Qg5 {[%clk 0:01:49]}  Qd8 {[%clk 0:02:20]} 21. Nd4 {[%clk 0:01:42]}  Nc6 {[%clk 0:02:09]} 22. Qxd8 {[%clk 0:01:34]}  Rfxd8 {[%clk 0:02:08]} 23. Nxb3 {[%clk 0:01:20]}  axb3 {[%clk 0:02:09]} 24. Rfe1 {[%clk 0:01:18]}  d4 {[%clk 0:01:56]} 25. cxd4 {[%clk 0:01:08]}  Nxd4 {[%clk 0:01:54]} 26. Bxb7 {[%clk 0:01:05]}  Rc2 {[%clk 0:01:53]} 27. Rb1 {[%clk 0:00:47]}  Ne2+ {[%clk 0:01:45]} 28. Kf1 {[%clk 0:00:44]}  Rdd2 {[%clk 0:01:41]} 29. Be4 {[%clk 0:00:37]}  Nd4 {[%clk 0:01:41]} 30. Kg1 {[%clk 0:00:04]}  Rxb2 {[%clk 0:01:40]} 31. a4 {[%clk 0:00:04]}  Rxb1 {[%clk 0:01:37]} 32. Rxb1 {[%clk 0:00:03]}  Ne2+ {[%clk 0:01:37]} 33. Kf1 {[%clk 0:00:01]}  Nc3 {[%clk 0:01:37]} 34. Re1 {[%clk 0:00:01]}  Nxe4 {[%clk 0:01:36]} 35. Rxe4 {[%clk 0:00:02]}  b2 {[%clk 0:01:36]} 36. Rb4 {[%clk 0:00:00]}  Rd1+ {[%clk 0:01:37]} 0-1


[Site "https://www.chess.com"]

[Event "Titled Tuesday Blitz August 15 Late 2023"]
[White "Naroditsky, Daniel"]
[Black "Taboas Rodriguez, Daniel"]
[WhiteFideId "2026961"]
[BlackFideId "2208466"]
[WhiteElo "3167"]
[BlackElo "2504"]
[Result "1-0"]
[Round "1"]
[TimeControl "180+1"]
[Date "2023.08.15"]
[WhiteClock "0:00:06"]
[BlackClock "0:00:00"]
[Board "2"]

1. e4 {[%clk 0:03:00]}  e5 {[%clk 0:03:00]} 2. Nf3 {[%clk 0:03:00]}  Nc6 {[%clk 0:03:00]} 3. Nc3 {[%clk 0:03:00]}  Nf6 {[%clk 0:03:00]} 4. d4 {[%clk 0:03:01]}  exd4 {[%clk 0:03:00]} 5. Nd5 {[%clk 0:03:02]}  Be7 {[%clk 0:03:01]} 6. Bd3 {[%clk 0:03:00]}  d6 {[%clk 0:02:59]} 7. h3 {[%clk 0:03:00]}  O-O {[%clk 0:02:57]} 8. O-O {[%clk 0:03:00]}  Be6 {[%clk 0:02:54]} 9. Nxe7+ {[%clk 0:03:00]}  Qxe7 {[%clk 0:02:53]} 10. Bg5 {[%clk 0:03:00]}  h6 {[%clk 0:02:53]} 11. Bh4 {[%clk 0:03:01]}  Bd7 {[%clk 0:02:49]} 12. Re1 {[%clk 0:02:55]}  Qe6 {[%clk 0:02:48]} 13. Qd2 {[%clk 0:02:36]}  Rae8 {[%clk 0:02:46]} 14. Qf4 {[%clk 0:02:36]}  Nh5 {[%clk 0:02:24]} 15. Qd2 {[%clk 0:02:28]}  g5 {[%clk 0:02:10]} 16. Bg3 {[%clk 0:02:20]}  Qf6 {[%clk 0:02:04]} 17. Nh2 {[%clk 0:02:01]}  Nf4 {[%clk 0:01:56]} 18. Bf1 {[%clk 0:01:58]}  Qg6 {[%clk 0:01:54]} 19. Bxf4 {[%clk 0:01:57]}  gxf4 {[%clk 0:01:55]} 20. Qxf4 {[%clk 0:01:58]}  Bxh3 {[%clk 0:01:50]} 21. Rad1 {[%clk 0:01:53]}  Bd7 {[%clk 0:01:47]} 22. Rd3 {[%clk 0:01:52]}  Re5 {[%clk 0:01:29]} 23. Nf3 {[%clk 0:01:42]}  Rh5 {[%clk 0:01:20]} 24. Nxd4 {[%clk 0:01:33]}  Nxd4 {[%clk 0:01:21]} 25. Rxd4 {[%clk 0:01:34]}  Re8 {[%clk 0:01:13]} 26. Re3 {[%clk 0:01:24]}  Rg5 {[%clk 0:01:11]} 27. f3 {[%clk 0:01:10]}  Bc6 {[%clk 0:01:09]} 28. Rd2 {[%clk 0:01:02]}  Kg7 {[%clk 0:01:07]} 29. Kf2 {[%clk 0:00:57]}  Qf6 {[%clk 0:01:05]} 30. Qxf6+ {[%clk 0:00:55]}  Kxf6 {[%clk 0:01:06]} 31. c4 {[%clk 0:00:50]}  h5 {[%clk 0:01:05]} 32. b4 {[%clk 0:00:50]}  a6 {[%clk 0:01:03]} 33. Rb3 {[%clk 0:00:48]}  h4 {[%clk 0:01:01]} 34. b5 {[%clk 0:00:48]}  axb5 {[%clk 0:00:58]} 35. cxb5 {[%clk 0:00:49]}  Bd7 {[%clk 0:00:58]} 36. Rc2 {[%clk 0:00:50]}  Rc8 {[%clk 0:00:55]} 37. a4 {[%clk 0:00:47]}  Rc5 {[%clk 0:00:51]} 38. Rxc5 {[%clk 0:00:37]}  dxc5 {[%clk 0:00:52]} 39. a5 {[%clk 0:00:38]}  Ra8 {[%clk 0:00:51]} 40. a6 {[%clk 0:00:37]}  Bc8 {[%clk 0:00:44]} 41. axb7 {[%clk 0:00:30]}  Bxb7 {[%clk 0:00:44]} 42. Rc3 {[%clk 0:00:31]}  Ra2+ {[%clk 0:00:41]} 43. Be2 {[%clk 0:00:30]}  c6 {[%clk 0:00:35]} 44. bxc6 {[%clk 0:00:27]}  Ba6 {[%clk 0:00:28]} 45. Re3 {[%clk 0:00:27]}  Ke5 {[%clk 0:00:24]} 46. c7 {[%clk 0:00:05]}  Kd6 {[%clk 0:00:23]} 47. c8=Q {[%clk 0:00:04]}  Bxc8 {[%clk 0:00:23]} 48. Kf1 {[%clk 0:00:05]}  Be6 {[%clk 0:00:22]} 49. Rc3 {[%clk 0:00:05]}  Ra5 {[%clk 0:00:19]} 50. Kf2 {[%clk 0:00:05]}  Ke5 {[%clk 0:00:19]} 51. Ke3 {[%clk 0:00:06]}  Kd6 {[%clk 0:00:19]} 52. f4 {[%clk 0:00:07]}  Ra4 {[%clk 0:00:17]} 53. Bf3 {[%clk 0:00:07]}  Rd4 {[%clk 0:00:17]} 54. e5+ {[%clk 0:00:07]}  Kd7 {[%clk 0:00:16]} 55. Rxc5 {[%clk 0:00:08]}  Rb4 {[%clk 0:00:16]} 56. Ra5 {[%clk 0:00:06]}  Rb3+ {[%clk 0:00:15]} 57. Kf2 {[%clk 0:00:06]}  Rb2+ {[%clk 0:00:16]} 58. Kg1 {[%clk 0:00:06]}  Ke7 {[%clk 0:00:13]} 59. Ra8 {[%clk 0:00:04]}  Rb4 {[%clk 0:00:09]} 60. Bc6 {[%clk 0:00:05]}  f5 {[%clk 0:00:07]} 61. Ra7+ {[%clk 0:00:03]}  Kf8 {[%clk 0:00:07]} 62. Ra8+ {[%clk 0:00:03]}  Ke7 {[%clk 0:00:07]} 63. Ra7+ {[%clk 0:00:03]}  Kf8 {[%clk 0:00:07]} 64. Bf3 {[%clk 0:00:02]}  Rxf4 {[%clk 0:00:07]} 65. Ra6 {[%clk 0:00:03]}  Ke7 {[%clk 0:00:07]} 66. Ra7+ {[%clk 0:00:04]}  Ke8 {[%clk 0:00:07]} 67. Kf2 {[%clk 0:00:04]}  Rb4 {[%clk 0:00:06]} 68. Ra8+ {[%clk 0:00:04]}  Ke7 {[%clk 0:00:06]} 69. Ra7+ {[%clk 0:00:05]}  Kf8 {[%clk 0:00:07]} 70. Ke3 {[%clk 0:00:05]}  f4+ {[%clk 0:00:07]} 71. Kd3 {[%clk 0:00:05]}  h3 {[%clk 0:00:07]} 72. gxh3 {[%clk 0:00:06]}  Bxh3 {[%clk 0:00:07]} 73. Bd5 {[%clk 0:00:05]}  Bf5+ {[%clk 0:00:07]} 74. Kc3 {[%clk 0:00:05]}  Rb5 {[%clk 0:00:07]} 75. Kc4 {[%clk 0:00:04]}  Rb2 {[%clk 0:00:07]} 76. Rf7+ {[%clk 0:00:04]}  Ke8 {[%clk 0:00:07]} 77. Rxf5 {[%clk 0:00:05]}  Rf2 {[%clk 0:00:05]} 78. Kc5 {[%clk 0:00:04]}  Ke7 {[%clk 0:00:05]} 79. Rf7+ {[%clk 0:00:04]}  Ke8 {[%clk 0:00:06]} 80. Kd6 {[%clk 0:00:05]}  Rb2 {[%clk 0:00:04]} 81. Rxf4 {[%clk 0:00:05]}  Rb6+ {[%clk 0:00:00]} 82. Bc6+ {[%clk 0:00:06]} 1-0


[Site "https://www.chess.com"]

[Event "Titled Tuesday Blitz August 15 Late 2023"]
[White "Arutla, Aditya"]
[Black "Firouzja, Alireza"]
[WhiteFideId "30961998"]
[BlackFideId "12573981"]
[WhiteElo "2504"]
[BlackElo "3121"]
[Result "0-1"]
[Round "1"]
[TimeControl "180+1"]
[Date "2023.08.15"]
[WhiteClock "0:00:08"]
[BlackClock "0:00:41"]
[Board "3"]

1. d4 {[%clk 0:03:00]}  Nf6 {[%clk 0:02:59]} 2. Bf4 {[%clk 0:03:01]}  e6 {[%clk 0:02:50]} 3. e3 {[%clk 0:02:59]}  b6 {[%clk 0:02:50]} 4. Qf3 {[%clk 0:02:59]}  Nc6 {[%clk 0:02:50]} 5. Nc3 {[%clk 0:02:58]}  Bb7 {[%clk 0:02:50]} 6. O-O-O {[%clk 0:02:57]}  Be7 {[%clk 0:02:47]} 7. Nge2 {[%clk 0:02:55]}  O-O {[%clk 0:02:46]} 8. g4 {[%clk 0:02:54]}  Na5 {[%clk 0:02:41]} 9. e4 {[%clk 0:02:47]}  d5 {[%clk 0:02:33]} 10. e5 {[%clk 0:02:44]}  Nd7 {[%clk 0:02:33]} 11. Qg3 {[%clk 0:02:34]}  c5 {[%clk 0:02:32]} 12. Be3 {[%clk 0:02:31]}  Rc8 {[%clk 0:02:22]} 13. h4 {[%clk 0:02:29]}  Nc4 {[%clk 0:02:16]} 14. g5 {[%clk 0:02:21]}  cxd4 {[%clk 0:02:13]} 15. Bxd4 {[%clk 0:02:20]}  b5 {[%clk 0:02:13]} 16. f4 {[%clk 0:01:50]}  Qa5 {[%clk 0:02:10]} 17. g6 {[%clk 0:01:29]}  b4 {[%clk 0:01:49]} 18. gxh7+ {[%clk 0:01:27]}  Kxh7 {[%clk 0:01:22]} 19. Rg1 {[%clk 0:01:24]}  Rg8 {[%clk 0:01:22]} 20. Qg4 {[%clk 0:01:12]}  g6 {[%clk 0:01:20]} 21. Nb1 {[%clk 0:00:59]}  Qxa2 {[%clk 0:01:16]} 22. h5 {[%clk 0:00:40]}  g5 {[%clk 0:00:55]} 23. Ng3 {[%clk 0:00:12]}  gxf4 {[%clk 0:00:55]} 24. Bd3+ {[%clk 0:00:12]}  Kh8 {[%clk 0:00:56]} 25. Qf3 {[%clk 0:00:13]}  fxg3 {[%clk 0:00:41]} 26. Qxf7 {[%clk 0:00:08]}  Bg5+ {[%clk 0:00:41]} 0-1


[Site "https://www.chess.com"]

[Event "Titled Tuesday Blitz August 15 Late 2023"]
[White "Rengifo Blancas, Renzo Jhonathan"]
[Black "Fedoseev, Vladimir"]
[WhiteFideId "3807185"]
[BlackFideId "24130737"]
[WhiteElo "2503"]
[BlackElo "3118"]
[Result "0-1"]
[Round "1"]
[TimeControl "180+1"]
[Date "2023.08.15"]
[WhiteClock "0:00:21"]
[BlackClock "0:01:42"]
[Board "5"]

1. e4 {[%clk 0:03:00]}  c6 {[%clk 0:02:44]} 2. d4 {[%clk 0:02:59]}  d5 {[%clk 0:02:44]} 3. Nc3 {[%clk 0:02:59]}  dxe4 {[%clk 0:02:44]} 4. Nxe4 {[%clk 0:02:55]}  Nf6 {[%clk 0:02:45]} 5. Nxf6+ {[%clk 0:02:55]}  exf6 {[%clk 0:02:46]} 6. c3 {[%clk 0:02:56]}  Bd6 {[%clk 0:02:45]} 7. Bd3 {[%clk 0:02:56]}  O-O {[%clk 0:02:46]} 8. Qh5 {[%clk 0:02:57]}  Re8+ {[%clk 0:02:46]} 9. Be3 {[%clk 0:02:57]}  f5 {[%clk 0:02:45]} 10. O-O-O {[%clk 0:02:46]}  g6 {[%clk 0:02:42]} 11. Qf3 {[%clk 0:02:44]}  Nd7 {[%clk 0:02:42]} 12. Ne2 {[%clk 0:02:43]}  Nf6 {[%clk 0:02:41]} 13. Bg5 {[%clk 0:02:38]}  Be7 {[%clk 0:02:40]} 14. Bc4 {[%clk 0:02:34]}  Ne4 {[%clk 0:02:23]} 15. Bxe7 {[%clk 0:02:30]}  Qxe7 {[%clk 0:02:24]} 16. Ng3 {[%clk 0:02:30]}  Qg5+ {[%clk 0:02:18]} 17. Kc2 {[%clk 0:02:30]}  Be6 {[%clk 0:02:11]} 18. Bd3 {[%clk 0:01:56]}  Bd5 {[%clk 0:02:10]} 19. Bxe4 {[%clk 0:01:43]}  Rxe4 {[%clk 0:02:02]} 20. c4 {[%clk 0:01:25]}  Rf4 {[%clk 0:01:59]} 21. Qe3 {[%clk 0:01:04]}  Bxc4 {[%clk 0:01:59]} 22. d5 {[%clk 0:00:42]}  Bxd5 {[%clk 0:01:56]} 23. h4 {[%clk 0:00:23]}  Rc4+ {[%clk 0:01:55]} 24. Kb1 {[%clk 0:00:22]}  Qxe3 {[%clk 0:01:55]} 25. fxe3 {[%clk 0:00:23]}  Rg4 {[%clk 0:01:55]} 26. Ne2 {[%clk 0:00:22]}  Re8 {[%clk 0:01:54]} 27. Nf4 {[%clk 0:00:22]}  Bxg2 {[%clk 0:01:52]} 28. Rhg1 {[%clk 0:00:20]}  Bf3 {[%clk 0:01:51]} 29. Rxg4 {[%clk 0:00:20]}  fxg4 {[%clk 0:01:51]} 30. Rd7 {[%clk 0:00:19]}  Rxe3 {[%clk 0:01:50]} 31. Kc2 {[%clk 0:00:19]}  g3 {[%clk 0:01:50]} 32. h5 {[%clk 0:00:18]}  gxh5 {[%clk 0:01:49]} 33. Nxh5 {[%clk 0:00:18]}  Bxh5 {[%clk 0:01:49]} 34. Kd2 {[%clk 0:00:18]}  g2 {[%clk 0:01:45]} 35. Rd8+ {[%clk 0:00:18]}  Kg7 {[%clk 0:01:44]} 36. Kxe3 {[%clk 0:00:19]}  g1=Q+ {[%clk 0:01:45]} 37. Kf4 {[%clk 0:00:19]}  Qf2+ {[%clk 0:01:44]} 38. Kg5 {[%clk 0:00:20]}  Qf6+ {[%clk 0:01:40]} 39. Kxh5 {[%clk 0:00:19]}  Qxd8 {[%clk 0:01:41]} 40. b4 {[%clk 0:00:19]}  Qd4 {[%clk 0:01:40]} 41. a4 {[%clk 0:00:20]}  Qf4 {[%clk 0:01:40]} 42. b5 {[%clk 0:00:21]}  h6 {[%clk 0:01:41]} 43. bxc6 {[%clk 0:00:21]}  Qg5# {[%clk 0:01:42]} 0-1


[Site "https://www.chess.com"]

[Event "Titled Tuesday Blitz August 15 Late 2023"]
[White "Seletsky, Grigory"]
[Black "Duda, Jan-Krzysztof"]
[WhiteFideId "14112191"]
[BlackFideId "1170546"]
[WhiteElo "2489"]
[BlackElo "3049"]
[Result "0-1"]
[Round "1"]
[TimeControl "180+1"]
[Date "2023.08.15"]
[WhiteClock "0:00:00"]
[BlackClock "0:00:49"]
[Board "9"]

1. e4 {[%clk 0:03:00]}  b6 {[%clk 0:03:00]} 2. d4 {[%clk 0:03:00]}  Bb7 {[%clk 0:03:01]} 3. f3 {[%clk 0:03:00]}  e6 {[%clk 0:03:01]} 4. c3 {[%clk 0:03:00]}  g6 {[%clk 0:03:00]} 5. Be3 {[%clk 0:03:00]}  Bg7 {[%clk 0:03:00]} 6. Bd3 {[%clk 0:03:01]}  d6 {[%clk 0:03:01]} 7. Nd2 {[%clk 0:03:01]}  Nd7 {[%clk 0:03:01]} 8. Ne2 {[%clk 0:03:01]}  Ne7 {[%clk 0:03:01]} 9. a4 {[%clk 0:03:01]}  a6 {[%clk 0:03:01]} 10. O-O {[%clk 0:03:00]}  O-O {[%clk 0:03:01]} 11. f4 {[%clk 0:02:57]}  f5 {[%clk 0:02:52]} 12. Qb3 {[%clk 0:02:42]}  d5 {[%clk 0:02:52]} 13. e5 {[%clk 0:02:40]}  a5 {[%clk 0:02:50]} 14. Nf3 {[%clk 0:02:28]}  Bh6 {[%clk 0:02:50]} 15. h3 {[%clk 0:02:26]}  Ba6 {[%clk 0:02:50]} 16. Bxa6 {[%clk 0:02:24]}  Rxa6 {[%clk 0:02:51]} 17. g4 {[%clk 0:02:24]}  c6 {[%clk 0:02:48]} 18. g5 {[%clk 0:02:23]}  Bg7 {[%clk 0:02:47]} 19. h4 {[%clk 0:02:23]}  Qc7 {[%clk 0:02:46]} 20. Ng3 {[%clk 0:02:23]}  Rb8 {[%clk 0:02:46]} 21. h5 {[%clk 0:02:22]}  b5 {[%clk 0:02:46]} 22. h6 {[%clk 0:02:09]}  Bf8 {[%clk 0:02:45]} 23. axb5 {[%clk 0:02:09]}  cxb5 {[%clk 0:02:44]} 24. Ra2 {[%clk 0:02:08]}  Nc6 {[%clk 0:02:42]} 25. Nd2 {[%clk 0:02:01]}  a4 {[%clk 0:02:40]} 26. Qd1 {[%clk 0:01:56]}  Nb6 {[%clk 0:02:36]} 27. Qe2 {[%clk 0:01:48]}  Nc4 {[%clk 0:02:36]} 28. Nxc4 {[%clk 0:01:45]}  dxc4 {[%clk 0:02:37]} 29. Rfa1 {[%clk 0:01:42]}  Ne7 {[%clk 0:02:36]} 30. Nf1 {[%clk 0:01:40]}  Nd5 {[%clk 0:02:36]} 31. Bd2 {[%clk 0:01:40]}  Rba8 {[%clk 0:02:36]} 32. Qd1 {[%clk 0:01:40]}  Qc6 {[%clk 0:02:34]} 33. Kf2 {[%clk 0:01:39]}  Kf7 {[%clk 0:02:34]} 34. Kg3 {[%clk 0:01:35]}  Ke8 {[%clk 0:02:27]} 35. Qf3 {[%clk 0:01:28]}  Kd7 {[%clk 0:02:20]} 36. Ne3 {[%clk 0:01:28]}  Nb6 {[%clk 0:02:20]} 37. Qxc6+ {[%clk 0:01:25]}  Kxc6 {[%clk 0:02:21]} 38. Kf3 {[%clk 0:01:24]}  a3 {[%clk 0:02:13]} 39. bxa3 {[%clk 0:01:23]}  Rxa3 {[%clk 0:02:14]} 40. Rxa3 {[%clk 0:01:21]}  Rxa3 {[%clk 0:02:15]} 41. Rxa3 {[%clk 0:01:17]}  Bxa3 {[%clk 0:02:16]} 42. Nc2 {[%clk 0:01:12]}  Be7 {[%clk 0:02:10]} 43. Ke2 {[%clk 0:00:48]}  Nd5 {[%clk 0:02:09]} 44. Kf3 {[%clk 0:00:46]}  b4 {[%clk 0:01:46]} 45. cxb4 {[%clk 0:00:37]}  c3 {[%clk 0:01:45]} 46. Bc1 {[%clk 0:00:31]}  Kb5 {[%clk 0:01:41]} 47. Ke2 {[%clk 0:00:30]}  Kc4 {[%clk 0:01:33]} 48. b5 {[%clk 0:00:29]}  Kxb5 {[%clk 0:01:11]} 49. Kd3 {[%clk 0:00:20]}  Bf8 {[%clk 0:01:11]} 50. Be3 {[%clk 0:00:15]}  Ka4 {[%clk 0:00:49]} 51. Bc1 {[%clk 0:00:13]}  Kb3 {[%clk 0:00:49]} 52. Be3 {[%clk 0:00:09]}  Ba3 {[%clk 0:00:47]} 53. Nxa3 {[%clk 0:00:06]}  Kxa3 {[%clk 0:00:46]} 54. Bc1+ {[%clk 0:00:07]}  Kb3 {[%clk 0:00:47]} 55. Be3 {[%clk 0:00:07]}  Nxe3 {[%clk 0:00:47]} 56. Kxe3 {[%clk 0:00:05]}  c2 {[%clk 0:00:47]} 57. Kd2 {[%clk 0:00:05]}  Kb2 {[%clk 0:00:48]} 58. d5 {[%clk 0:00:05]}  c1=Q+ {[%clk 0:00:49]} 59. Kd3 {[%clk 0:00:03]}  Qxf4 {[%clk 0:00:49]} 60. dxe6 {[%clk 0:00:00]}  Qe4+ {[%clk 0:00:49]} 0-1


[Site "https://www.chess.com"]

[Event "Titled Tuesday Blitz August 15 Late 2023"]
[White "Shimanov, Aleksandr"]
[Black "Tomb, Maroun"]
[WhiteFideId "4198603"]
[BlackFideId "5300398"]
[WhiteElo "3046"]
[BlackElo "2487"]
[Result "1-0"]
[Round "1"]
[TimeControl "180+1"]
[Date "2023.08.15"]
[WhiteClock "0:01:38"]
[BlackClock "0:00:31"]
[Board "10"]

1. d4 {[%clk 0:03:00]}  d6 {[%clk 0:02:59]} 2. Nf3 {[%clk 0:03:01]}  Nf6 {[%clk 0:03:00]} 3. g3 {[%clk 0:03:01]}  Nbd7 {[%clk 0:03:00]} 4. Bg2 {[%clk 0:03:00]}  e5 {[%clk 0:03:00]} 5. O-O {[%clk 0:03:01]}  c6 {[%clk 0:03:00]} 6. b3 {[%clk 0:03:01]}  Qc7 {[%clk 0:03:00]} 7. Bb2 {[%clk 0:02:59]}  Be7 {[%clk 0:02:59]} 8. c4 {[%clk 0:02:59]}  O-O {[%clk 0:02:59]} 9. Nc3 {[%clk 0:03:00]}  a5 {[%clk 0:02:57]} 10. Rc1 {[%clk 0:02:59]}  Re8 {[%clk 0:02:57]} 11. e4 {[%clk 0:02:58]}  exd4 {[%clk 0:02:56]} 12. Nxd4 {[%clk 0:02:59]}  Nc5 {[%clk 0:02:56]} 13. Re1 {[%clk 0:02:58]}  Bf8 {[%clk 0:02:55]} 14. h3 {[%clk 0:02:59]}  h5 {[%clk 0:02:55]} 15. a3 {[%clk 0:02:52]}  Bd7 {[%clk 0:02:54]} 16. b4 {[%clk 0:02:51]}  axb4 {[%clk 0:02:55]} 17. axb4 {[%clk 0:02:51]}  Na6 {[%clk 0:02:50]} 18. Qb3 {[%clk 0:02:47]}  g6 {[%clk 0:02:16]} 19. Nc2 {[%clk 0:02:15]}  Bg7 {[%clk 0:02:15]} 20. Rcd1 {[%clk 0:02:15]}  Be6 {[%clk 0:02:14]} 21. Nd4 {[%clk 0:02:10]}  Bd7 {[%clk 0:02:11]} 22. Bc1 {[%clk 0:02:07]}  Nh7 {[%clk 0:01:51]} 23. Bf4 {[%clk 0:02:03]}  Be5 {[%clk 0:01:51]} 24. Be3 {[%clk 0:02:02]}  Nf8 {[%clk 0:01:49]} 25. Nf3 {[%clk 0:01:56]}  Ne6 {[%clk 0:01:39]} 26. Nxe5 {[%clk 0:01:56]}  dxe5 {[%clk 0:01:40]} 27. c5 {[%clk 0:01:57]}  Qc8 {[%clk 0:01:33]} 28. Na4 {[%clk 0:01:54]}  Qc7 {[%clk 0:01:22]} 29. Nb6 {[%clk 0:01:53]}  Rad8 {[%clk 0:01:22]} 30. Rd6 {[%clk 0:01:54]}  Nf8 {[%clk 0:01:19]} 31. Red1 {[%clk 0:01:52]}  Be6 {[%clk 0:01:19]} 32. Qc3 {[%clk 0:01:52]}  f6 {[%clk 0:01:15]} 33. f4 {[%clk 0:01:50]}  Bf7 {[%clk 0:01:11]} 34. fxe5 {[%clk 0:01:45]}  fxe5 {[%clk 0:01:12]} 35. h4 {[%clk 0:01:39]}  Qe7 {[%clk 0:01:04]} 36. Bg5 {[%clk 0:01:38]}  Rxd6 {[%clk 0:00:53]} 37. cxd6 {[%clk 0:01:39]}  Qe6 {[%clk 0:00:47]} 38. d7 {[%clk 0:01:39]}  Nxd7 {[%clk 0:00:45]} 39. Nxd7 {[%clk 0:01:40]}  Kh8 {[%clk 0:00:31]} 40. Nxe5 {[%clk 0:01:38]} 1-0


[Site "https://www.chess.com"]

[Event "Titled Tuesday Blitz August 15 Late 2023"]
[White "Michalczak, Thomas"]
[Black "Grischuk, Alexander"]
[WhiteFideId "4622634"]
[BlackFideId "4126025"]
[WhiteElo "2487"]
[BlackElo "3045"]
[Result "0-1"]
[Round "1"]
[TimeControl "180+1"]
[Date "2023.08.15"]
[WhiteClock "0:00:00"]
[BlackClock "0:00:02"]
[Board "11"]

1. e4 {[%clk 0:03:00]}  e6 {[%clk 0:02:58]} 2. d4 {[%clk 0:03:00]}  d5 {[%clk 0:02:59]} 3. Nc3 {[%clk 0:03:00]}  Bb4 {[%clk 0:02:56]} 4. e5 {[%clk 0:03:00]}  c5 {[%clk 0:02:56]} 5. a3 {[%clk 0:02:59]}  Bxc3+ {[%clk 0:02:56]} 6. bxc3 {[%clk 0:02:59]}  Ne7 {[%clk 0:02:52]} 7. Qg4 {[%clk 0:02:59]}  cxd4 {[%clk 0:02:48]} 8. Qxg7 {[%clk 0:02:56]}  Rg8 {[%clk 0:02:48]} 9. Qxh7 {[%clk 0:02:56]}  Qc7 {[%clk 0:02:48]} 10. Ne2 {[%clk 0:02:56]}  Nbc6 {[%clk 0:02:30]} 11. f4 {[%clk 0:02:55]}  Bd7 {[%clk 0:02:30]} 12. Qd3 {[%clk 0:02:54]}  dxc3 {[%clk 0:02:29]} 13. Qxc3 {[%clk 0:02:55]}  Nf5 {[%clk 0:02:19]} 14. Rb1 {[%clk 0:02:50]}  d4 {[%clk 0:02:00]} 15. Qd3 {[%clk 0:02:49]}  O-O-O {[%clk 0:01:48]} 16. Rg1 {[%clk 0:02:49]}  Nce7 {[%clk 0:01:31]} 17. g4 {[%clk 0:02:16]}  Nh4 {[%clk 0:01:26]} 18. Rg3 {[%clk 0:02:17]}  Bc6 {[%clk 0:01:18]} 19. Bd2 {[%clk 0:02:04]}  Kb8 {[%clk 0:01:02]} 20. h3 {[%clk 0:02:03]}  Ka8 {[%clk 0:01:00]} 21. Bb4 {[%clk 0:01:58]}  Nd5 {[%clk 0:00:55]} 22. Bd6 {[%clk 0:01:56]}  Qa5+ {[%clk 0:00:53]} 23. Kf2 {[%clk 0:01:55]}  Nc3 {[%clk 0:00:34]} 24. Nxc3 {[%clk 0:01:39]}  dxc3 {[%clk 0:00:35]} 25. Qxc3 {[%clk 0:01:34]}  Qd5 {[%clk 0:00:35]} 26. Be2 {[%clk 0:00:49]}  Qe4 {[%clk 0:00:26]} 27. Qc4 {[%clk 0:00:40]}  Qg6 {[%clk 0:00:23]} 28. Bd3 {[%clk 0:00:34]}  Qh6 {[%clk 0:00:20]} 29. Rb4 {[%clk 0:00:19]}  Nf5 {[%clk 0:00:16]} 30. Bxf5 {[%clk 0:00:10]}  exf5 {[%clk 0:00:16]} 31. g5 {[%clk 0:00:11]}  Qh5 {[%clk 0:00:12]} 32. Ra4 {[%clk 0:00:09]}  Bxa4 {[%clk 0:00:09]} 33. Qxa4 {[%clk 0:00:10]}  Rc8 {[%clk 0:00:06]} 34. Rd3 {[%clk 0:00:00]}  Rc6 {[%clk 0:00:02]} 0-1


[Site "https://www.chess.com"]